bitfinex/quotes_SOLUSD_20230101
["timestamp","ask_amount","ask_price","bid_price","bid_amount"]
[1672534453498,75.01,10.013,10.001,175.9452]
[1672534453704,75.01,10.013,10.002,40.0]
[1672534454138,75.01,10.013,10.003,23.3524]
[1672534455602,75.01,10.013,10.004,40.0]
[1672534456148,75.01,10.013,10.004,63.7025]
[1672534456457,98.8014,10.014,10.004,63.7025]
[1672534456885,98.8014,10.014,10.005,11.2541997]
[1672534457206,98.8014,10.014,10.005,34.9566997]
[1672534459079,40.0,10.013,10.005,34.9566997]
[1672534461094,98.8014,10.014,10.005,34.9566997]
[1672534461286,40.0,10.013,10.005,34.9566997]
[1672534462138,98.8014,10.014,10.005,34.9566997]
[1672534462342,98.8014,10.014,10.005,74.9566997]
[1672534463189,23.8014,10.014,10.005,74.9566997]
[1672534463618,23.8014,10.014,10.005,34.9566997]
[1672534464546,23.8014,10.014,10.005,74.9566997]
[1672534465806,23.8014,10.014,10.005,34.9566997]
[1672534466227,23.8014,10.014,10.005,74.9566997]
[1672534467405,23.8014,10.014,10.005,34.9566997]
[1672534471495,75.01,10.013,10.005,34.9566997]
[1672534471701,40.0,10.012,10.005,34.9566997]
[1672534516502,39.5,10.012,10.005,34.9566997]
[1672534527645,114.52,10.012,10.005,34.9566997]
[1672534530368,39.5,10.012,10.005,34.9566997]
[1672534531852,75.01,10.013,10.005,74.9566997]
[1672534532042,63.8014,10.014,10.005,74.9566997]
[1672534532258,63.8014,10.014,10.005,34.9566997]
[1672534533197,40.0,10.012,10.005,34.9566997]
[1672534543957,40.0,10.013,10.005,34.9566997]
[1672534548474,63.8014,10.014,10.005,74.9566997]
[1672534548683,23.8014,10.014,10.005,120.2666997]
[1672534549315,63.8014,10.014,10.005,80.2666997]
[1672534551190,63.8014,10.014,10.005,120.2666997]
[1672534551714,63.8014,10.014,10.005,196.6292339]
[1672534552050,23.8014,10.014,10.006,40.0]
[1672534552871,23.8014,10.014,10.007,11.65454785]
[1672534553939,63.8014,10.014,10.007,11.65454785]
[1672534554153,23.8014,10.014,10.007,11.65454785]
[1672534554768,23.8014,10.014,10.007,433.91708205]
[1672534554979,74.63499843,10.021,10.008,137.66939907]
[1672534555206,114.63499843,10.022,10.01,40.0]
[1672534555413,114.63499843,10.022,10.009,94.1219]
[1672534555414,40.0,10.022,10.011,114.1119]
[1672534555634,114.94,10.022,10.011,114.1119]
[1672534555840,40.0,10.02,10.007,56.95454785]
[1672534556049,94.96,10.019,10.007,11.65454785]
[1672534556366,40.0,10.018,10.007,11.65454785]
[1672534556578,74.98,10.017,10.007,11.65454785]
[1672534556788,40.0,10.015,10.007,11.65454785]
[1672534557619,63.0904,10.015,10.007,11.65454785]
[1672534562679,40.0,10.013,10.007,11.65454785]
[1672534569927,40.0,10.011,10.007,11.65454785]
[1672534575482,40.0,10.009,10.007,11.65454785]
[1672534576864,40.0,10.009,10.005,151.35968544]
[1672534577074,40.0,10.009,10.005,11.64748544]
[1672534580857,40.0,10.009,10.003,34.17778647]
[1672534591385,115.02,10.011,10.003,34.17778647]
[1672534591899,40.0,10.011,10.003,34.17778647]
[1672534592423,115.02,10.012,10.003,34.17778647]
[1672534592633,40.0,10.012,10.003,34.17778647]
[1672534594119,75.02,10.011,10.003,34.17778647]
[1672534595174,40.0,10.01,10.003,34.17778647]
[1672534596862,75.02,10.011,10.003,34.17778647]
[1672534597064,137.7577,10.014,10.003,34.17778647]
[1672534597277,137.7577,10.014,10.004,40.0]
[1672534597278,97.7577,10.014,10.004,40.0]
[1672534597594,97.7577,10.014,10.004,63.0565]
[1672534597804,40.0,10.013,10.004,63.0565]
[1672534597998,97.7577,10.014,10.004,63.0565]
[1672534598939,40.0,10.013,10.005,11.67728647]
[1672534617761,40.0,10.011,10.005,11.67728647]
[1672534633515,40.0,10.013,10.005,11.67728647]
[1672534633729,137.7577,10.014,10.005,11.67728647]
[1672534634696,97.7577,10.014,10.005,50.22289433]
[1672534634892,22.7577,10.014,10.005,50.22289433]
[1672534635306,22.7577,10.014,10.005,34.41558647]
[1672534637519,22.7577,10.014,10.006,55.80730786]
[1672534637718,22.7577,10.014,10.006,40.0]
[1672534638057,22.7577,10.014,10.006,51.66238447]
[1672534640874,22.7577,10.014,10.006,11.66238447]
[1672534641307,62.7577,10.014,10.006,11.66238447]
[1672534641733,22.7577,10.014,10.006,51.66238447]
[1672534643208,22.7577,10.014,10.006,121.958252]
[1672534645507,22.7577,10.014,10.006,223.058252]
[1672534648560,22.7577,10.014,10.006,523.658252]
[1672534648762,22.7577,10.014,10.006,539.46555986]
[1672534648976,22.7577,10.014,10.006,596.50003499]
[1672534649180,22.7577,10.014,10.007,20.0]
[1672534649393,22.7577,10.014,10.008,40.0]
[1672534649620,40.0,10.024,10.008,535.76214631]
[1672534649835,74.93,10.023,10.01,40.0]
[1672534650144,74.93,10.023,10.011,20.0]
[1672534650357,74.93,10.023,10.012,40.0]
[1672534650545,74.93,10.023,10.013,23.9419]
[1672534651496,40.0,10.022,10.013,23.9419]
[1672534651694,74.93,10.023,10.013,23.9419]
[1672534652872,74.93,10.023,10.014,11.54327559]
[1672534653692,139.5571,10.024,10.014,76.13837559]
[1672534653922,99.5571,10.024,10.014,76.13837559]
[1672534654139,99.5571,10.024,10.015,40.0]
[1672534654969,99.5571,10.024,10.015,64.5951]
[1672534656870,99.5571,10.024,10.016,11.5135281]
[1672534657061,40.0,10.023,10.016,11.5135281]
[1672534657593,139.5571,10.024,10.016,11.5135281]
[1672534657808,64.6271,10.024,10.016,11.5135281]
[1672534658214,24.6271,10.024,10.016,11.5135281]
[1672534658635,40.0,10.023,10.016,11.5135281]
[1672534659277,64.6271,10.024,10.016,11.5135281]
[1672534660346,24.6271,10.024,10.016,11.5135281]
[1672534660557,64.6271,10.024,10.016,11.5135281]
[1672534664648,74.93,10.023,10.016,11.5135281]
[1672534664859,74.93,10.023,10.006,101.1]
[1672534664860,40.0,10.022,10.006,101.1]
[1672534665059,40.0,10.02,10.017,11.49865881]
[1672534665271,94.96,10.019,10.017,11.49865881]
[1672534665480,40.0,10.018,10.017,11.49865881]
[1672534665711,60.0,10.018,10.017,5.881e-05]
[1672534665906,220.8887,10.018,10.017,5.881e-05]
[1672534666117,220.8887,10.018,10.006,101.1]
[1672534666433,20.0,10.017,10.006,165.84920086]
[1672534666658,40.0,10.016,10.007,40.0]
[1672534667061,180.8887,10.017,10.007,40.0]
[1672534667272,22.9382,10.015,10.007,40.0]
[1672534667786,22.9382,10.015,10.007,55.80730786]
[1672534668548,22.9382,10.015,10.007,356.40730786]
[1672534669904,74.94,10.022,10.008,20.0]
[1672534670225,143.4835,10.023,10.01,300.6]
[1672534670429,143.4835,10.023,10.011,360.6]
[1672534670644,143.4835,10.023,10.011,376.40730786]
[1672534671075,143.4835,10.023,10.012,83.567564]
[1672534671260,143.4835,10.023,10.013,40.0]
[1672534671921,40.0,10.022,10.012,106.919264]
[1672534672120,114.94,10.022,10.012,23.3517]
[1672534685580,114.94,10.022,10.004,40.0]
[1672534685777,69.089,10.021,10.007,45.59]
[1672534685990,74.96,10.02,10.007,45.59]
[1672534686197,40.0,10.018,10.005,45.6]
[1672534686423,264.0223,10.017,10.005,45.6]
[1672534686852,264.0223,10.017,10.004,22.6419]
[1672534687044,165.1674,10.016,10.004,22.6419]
[1672534687255,114.99,10.015,10.004,22.6419]
[1672534687459,114.99,10.015,10.003,24.6546]
[1672534687460,165.1674,10.014,10.003,24.6546]
[1672534687782,40.0,10.012,10.002,111.7044]
[1672534687998,40.0,10.01,10.001,22.6419]
[1672534688217,40.0,10.01,9.9991,45.64]
[1672534688429,40.0,10.01,10.0,20.0]
[1672534688626,40.0,10.01,10.001,45.63]
[1672534688832,40.0,10.01,10.0,20.0]
[1672534689037,75.02,10.011,10.001,45.63]
[1672534689256,40.0,10.01,10.0,20.0]
[1672534689477,40.0,10.01,10.001,75.1]
[1672534689669,40.0,10.01,10.0,20.0]
[1672534689879,40.0,10.01,10.001,75.1]
[1672534690090,40.0,10.01,10.0,20.0]
[1672534690301,40.0,10.01,10.001,75.1]
[1672534690526,40.0,10.01,10.0,20.0]
[1672534691473,40.0,10.008,10.0,20.0]
[1672534691664,40.0,10.008,10.001,75.1]
[1672534691875,40.0,10.008,10.0,20.0]
[1672534692719,75.04,10.009,10.0,20.0]
[1672534693157,75.02,10.011,10.0,20.0]
[1672534693472,40.0,10.01,10.0,20.0]
[1672534694084,40.0,10.01,10.0,95.11]
[1672534694296,75.02,10.011,10.0,95.11]
[1672534694506,75.02,10.011,10.001,40.0]
[1672534695893,40.0,10.01,10.0,44.7222]
[1672534696210,75.02,10.011,10.001,75.1]
[1672534696401,75.02,10.011,10.0,44.7222]
[1672534696613,75.02,10.011,10.001,75.1]
[1672534696931,75.02,10.011,10.0,44.7222]
[1672534697144,75.02,10.011,10.001,75.1]
[1672534697348,75.02,10.011,10.0,44.7222]
[1672534697562,75.02,10.011,10.001,75.1]
[1672534697765,75.02,10.011,10.0,44.7222]
[1672534697973,40.0,10.01,10.001,75.1]
[1672534698186,40.0,10.01,10.0,44.7222]
[1672534698397,40.0,10.01,9.9962,40.0]
[1672534698398,20.0,10.009,9.997,75.13]
[1672534698610,20.0,10.009,9.9887,164.22872028]
[1672534698611,115.05,10.008,9.9963,75.13]
[1672534698822,115.05,10.008,9.995,15.80730786]
[1672534698823,40.0,10.007,9.995,15.80730786]
[1672534699044,75.06,10.006,9.9951,75.14]
[1672534699454,40.0,10.005,9.9952,15.80730786]
[1672534699663,199.1501,10.005,9.9954,40.0]
[1672534699879,159.1501,10.005,9.9956,40.0]
[1672534700195,159.1501,10.005,9.9958,40.0]
[1672534700408,24.1696,10.004,9.9959,75.14]
[1672534700621,24.1696,10.004,9.9959,15.80730786]
[1672534700812,24.1696,10.004,9.996,90.94730786]
[1672534701023,136.3898,10.004,9.996,90.94730786]
[1672534701248,136.3898,10.004,9.9961,15.80730786]
[1672534701454,136.3898,10.004,9.9962,75.13]
[1672534701667,136.3898,10.004,9.9962,74.13]
[1672534701875,136.3898,10.004,9.9963,15.80730786]
[1672534702080,136.3898,10.004,9.9964,75.13]
[1672534702503,136.3898,10.004,9.9953,15.80730786]
[1672534702723,136.9308,10.004,9.9955,40.0]
[1672534702927,136.9308,10.004,9.9957,40.0]
[1672534703138,136.9308,10.004,9.9958,75.14]
[1672534703457,136.9308,10.004,9.9957,75.14]
[1672534704077,136.9308,10.004,9.9954,115.14]
[1672534704723,136.9308,10.004,9.9955,64.74920086]
[1672534704926,136.9308,10.004,9.9956,115.14]
[1672534705542,24.7106,10.004,9.9956,115.14]
[1672534707747,24.7106,10.004,9.9956,415.74]
[1672534709452,24.7106,10.004,9.9956,480.48920086]
[1672534711434,115.05,10.007,9.9956,480.48920086]
[1672534712076,75.05,10.007,9.9956,480.48920086]
[1672534712920,75.05,10.007,9.9956,547.13524367]
[1672534713140,75.05,10.008,9.9956,547.13524367]
[1672534713328,20.0,10.007,9.9956,547.13524367]
[1672534713963,20.0,10.008,9.9956,547.13524367]
[1672534717111,40.0,10.007,9.9956,547.13524367]
[1672534719121,40.0,10.007,9.9956,507.13524367]
[1672534719328,40.0,10.007,9.9956,440.48920086]
[1672534721035,40.0,10.007,9.9957,40.0]
[1672534721223,40.0,10.007,9.9958,44.72]
[1672534721437,40.0,10.007,9.9957,44.72]
[1672534723326,40.0,10.007,9.9958,40.0]
[1672534723536,40.0,10.007,9.996,40.0]
[1672534723761,40.0,10.007,9.9961,44.71]
[1672534725869,40.0,10.007,9.9957,44.73]
[1672534726066,115.05,10.007,9.9942,44.74]
[1672534726485,115.05,10.007,9.9943,40.0]
[1672534726813,115.05,10.007,9.9944,44.74]
[1672534727340,115.05,10.007,9.9945,40.0]
[1672534727545,115.05,10.007,9.9946,44.74]
[1672534727769,115.05,10.007,9.9946,410.08920086]
[1672534727955,115.05,10.007,9.9947,40.0]
[1672534728169,115.05,10.007,9.9948,44.74]
[1672534728480,115.05,10.007,9.9949,40.0]
[1672534728689,115.05,10.007,9.995,45.15]
[1672534728900,115.05,10.007,9.995,109.89920086]
[1672534729118,115.05,10.007,9.9951,64.74920086]
[1672534729331,115.05,10.007,9.9952,49.56]
[1672534729741,115.05,10.007,9.9953,64.74920086]
[1672534729953,115.05,10.007,9.9954,52.08]
[1672534730380,115.05,10.007,9.9955,64.74920086]
[1672534730587,115.05,10.007,9.9956,56.29]
[1672534730912,115.05,10.007,9.9957,64.74920086]
[1672534731108,115.05,10.007,9.9958,58.06]
[1672534731858,40.0,10.005,9.9958,58.06]
[1672534732299,40.0,10.005,9.9958,122.80920086]
[1672534732825,158.6811,10.005,9.9958,122.80920086]
[1672534733350,22.7603,10.004,9.9958,122.80920086]
[1672534735748,21.2603,10.004,9.9959,40.0]
[1672534735962,21.2603,10.004,9.996,56.16]
[1672534736485,21.2603,10.004,9.9959,56.17]
[1672534739230,21.2603,10.004,9.996,64.74920086]
[1672534739437,21.2603,10.004,9.9961,54.74]
[1672534741737,40.0,10.005,9.9961,54.74]
[1672534742478,40.0,10.005,9.9961,119.48920086]
[1672534743646,115.05,10.007,9.9962,40.0]
[1672534743850,115.05,10.007,9.9963,52.22]
[1672534744266,115.05,10.007,9.9962,54.13]
[1672534749838,115.05,10.007,9.9961,64.74920086]
[1672534751010,115.05,10.007,9.9962,73.06]
[1672534753750,115.05,10.007,9.9962,137.80920086]
[1672534754059,115.05,10.007,9.9962,64.74920086]
[1672534760668,75.05,10.007,9.9963,40.0]
[1672534760979,75.05,10.007,9.9963,111.13]
[1672534761632,40.0,10.006,9.9963,71.13]
[1672534762902,40.0,10.006,9.9964,40.0]
[1672534763211,75.05,10.007,9.9963,71.13]
[1672534763402,95.05,10.008,9.9964,104.74920086]
[1672534763609,95.05,10.008,9.9966,40.0]
[1672534763822,95.05,10.008,9.9967,68.33]
[1672534764046,95.05,10.008,9.9968,40.0]
[1672534764258,95.05,10.008,9.997,40.0]
[1672534764471,95.05,10.008,9.9971,71.14]
[1672534764675,95.05,10.008,9.9972,40.0]
[1672534764892,142.917,10.007,9.9974,40.0]
[1672534765102,142.917,10.007,9.9975,72.35]
[1672534765301,142.917,10.007,9.9976,40.0]
[1672534765512,23.1892,10.006,9.9978,40.0]
[1672534765721,23.1892,10.006,9.998,40.0]
[1672534766680,23.1892,10.006,9.9981,64.74920086]
[1672534766873,23.1892,10.006,9.9982,75.12]
[1672534767084,23.1892,10.006,9.9981,64.74920086]
[1672534767299,23.1892,10.006,9.9982,40.0]
[1672534767821,23.1892,10.006,9.9981,64.74920086]
[1672534768472,23.1892,10.006,9.9982,40.0]
[1672534768683,23.1892,10.006,9.9983,69.3]
[1672534768883,23.1892,10.006,9.9984,40.0]
[1672534769096,23.1892,10.006,9.9986,40.0]
[1672534769427,23.1892,10.006,9.9988,40.0]
[1672534769734,23.1892,10.006,9.999,40.0]
[1672534769917,23.1892,10.006,9.9992,40.0]
[1672534771813,23.1892,10.006,9.9993,70.7]
[1672534772026,23.1892,10.006,9.9994,40.0]
[1672534772344,23.1892,10.006,9.9996,40.0]
[1672534773528,23.1892,10.006,9.9997,69.6]
[1672534773721,23.1892,10.006,9.9998,40.0]
[1672534782668,23.1892,10.006,10.0,40.0]
[1672534782993,23.1892,10.006,10.001,72.96]
[1672534783196,23.1892,10.006,10.0,40.0]
[1672534783513,23.1892,10.006,10.001,72.96]
[1672534783707,23.1892,10.006,10.0,40.0]
[1672534786455,23.1892,10.006,10.001,74.03]
[1672534786667,23.1892,10.006,10.0,40.0]
[1672534786860,23.1892,10.006,10.002,40.0]
[1672534787707,143.3597,10.007,10.002,40.0]
[1672534787708,75.03,10.01,10.002,40.0]
[1672534787920,75.02,10.011,10.002,40.0]
[1672534788138,75.01,10.013,10.002,40.0]
[1672534788460,123.7918,10.013,10.002,40.0]
[1672534788855,123.7918,10.013,10.002,64.7167]
[1672534794009,40.0,10.012,10.002,64.7167]
[1672534794221,75.02,10.011,10.002,64.7167]
[1672534795268,75.02,10.012,10.002,64.7167]
[1672534796530,40.0,10.011,10.002,24.7167]
[1672534797896,75.03,10.01,10.002,24.7167]
[1672534798317,40.0,10.009,10.002,24.7167]
[1672534798552,40.0,10.007,10.002,24.7167]
[1672534798857,75.05,10.008,9.9972,40.0]
[1672534799046,160.3802,10.007,9.9975,75.12]
[1672534799266,160.3802,10.007,9.9976,40.0]
[1672534799477,160.3802,10.007,9.9977,75.12]
[1672534799705,24.9609,10.006,9.9978,40.0]
[1672534799891,24.9609,10.006,9.9979,75.12]
[1672534800106,24.9609,10.006,9.998,40.0]
[1672534800753,24.9609,10.006,9.9981,64.74920086]
[1672534801796,24.9609,10.006,9.9982,40.0]
[1672534802005,24.9609,10.006,9.9983,75.12]
[1672534802333,24.9609,10.006,9.9984,40.0]
[1672534802545,24.9609,10.006,9.9985,75.12]
[1672534802751,24.9609,10.006,9.9986,40.0]
[1672534802967,24.9609,10.006,9.9987,75.12]
[1672534803179,24.9609,10.006,9.9988,40.0]
[1672534803493,24.9609,10.006,9.999,40.0]
[1672534803696,24.9609,10.006,9.9991,74.83]
[1672534803893,24.9609,10.006,9.9992,40.0]
[1672534804108,24.9609,10.006,9.9993,74.98]
[1672534804324,24.9609,10.006,9.9994,40.0]
[1672534804530,24.9609,10.006,9.9995,74.94]
[1672534804753,24.9609,10.006,9.9996,40.0]
[1672534804947,24.9609,10.006,9.9998,40.0]
[1672534805159,24.9609,10.006,9.9999,75.11]
[1672534805367,24.9609,10.006,10.0,40.0]
[1672534805577,24.9609,10.006,9.9995,64.74920086]
[1672534805788,24.9609,10.006,9.9983,75.12]
[1672534806000,24.9609,10.006,9.9989,75.11]
[1672534807170,24.9609,10.006,9.9994,40.0]
[1672534807591,24.9609,10.006,9.9989,75.11]
[1672534807794,24.9609,10.006,9.999,40.0]
[1672534809272,75.03,10.01,10.001,40.0]
[1672534809490,75.01,10.013,10.002,75.09]
[1672534809695,75.01,10.013,10.003,40.0]
[1672534810832,98.3815,10.013,10.003,40.0]
[1672534812419,23.3715,10.013,10.003,40.0]
[1672534813457,23.3715,10.013,9.9991,66.64604281]
[1672534813458,23.3715,10.013,9.9994,52.02449579]
[1672534813673,40.0,10.011,9.9971,30.0]
[1672534813883,255.4057,10.01,9.994,23.7832]
[1672534814107,40.0,10.009,9.994,23.7832]
[1672534814320,255.4257,10.008,9.994,23.7832]
[1672534814629,40.0,10.007,9.994,23.7832]
[1672534814846,75.06,10.006,9.994,23.7832]
[1672534815035,75.06,10.006,9.993,23.3825]
[1672534815036,40.0,10.004,9.993,23.3825]
[1672534815252,275.4557,10.004,9.9916,15.80730786]
[1672534815456,200.3757,10.004,9.9916,15.80730786]
[1672534815668,87.1522,10.004,9.9916,15.80730786]
[1672534815984,162.2322,10.004,9.9916,15.80730786]
[1672534817769,162.2322,10.004,9.9917,40.0]
[1672534818191,162.2322,10.004,9.9918,15.80730786]
[1672534819449,162.2322,10.004,9.9913,23.6342]
[1672534821901,115.08,10.004,9.9915,40.0]
[1672534822810,115.08,10.004,9.9913,23.6342]
[1672534823233,115.08,10.004,9.9914,67.78]
[1672534823676,115.08,10.004,9.9915,40.0]
[1672534823868,115.08,10.004,9.9916,67.78]
[1672534824081,115.08,10.004,9.9917,40.0]
[1672534824496,115.08,10.004,9.9916,67.78]
[1672534824704,115.08,10.004,9.9915,67.78]
[1672534825355,115.08,10.004,9.9916,40.0]
[1672534825564,115.08,10.004,9.9918,40.0]
[1672534826595,115.08,10.004,9.9917,67.78]
[1672534826802,115.08,10.004,9.9918,40.0]
[1672534830803,115.08,10.004,9.9917,24.2722]
[1672534832382,115.08,10.004,9.9918,40.0]
[1672534837005,115.08,10.004,9.9917,24.2722]
[1672534837953,115.08,10.004,9.9918,40.0]
[1672534838700,75.08,10.004,9.9925,300.6]
[1672534838895,75.08,10.004,9.9919,15.80730786]
[1672534838896,75.05,10.007,9.9926,40.0]
[1672534839109,40.0,10.006,9.9926,55.80730786]
[1672534839430,75.07,10.005,9.9928,40.0]
[1672534839858,75.07,10.005,9.9929,15.80730786]
[1672534840073,40.0,10.004,9.9929,15.80730786]
[1672534841227,75.07,10.005,9.9929,15.80730786]
[1672534845953,75.07,10.005,9.9928,63.7773]
[1672534846161,40.0,10.004,9.9928,63.7773]
[1672534846353,75.08,10.003,9.9928,63.7773]
[1672534846687,100.0392,10.003,9.9928,63.7773]
[1672534848369,40.0,10.002,9.9928,23.7773]
[1672534849106,100.0392,10.003,9.9928,23.7773]
[1672534849321,100.0392,10.003,9.9929,40.0]
[1672534851948,75.08,10.003,9.9929,40.0]
[1672534856257,40.0,10.004,9.9929,40.0]
[1672534856444,75.08,10.003,9.9931,40.0]
[1672534856656,40.0,10.004,9.9931,40.0]
[1672534856876,75.08,10.003,9.9932,24.4821]
[1672534857730,75.08,10.003,9.9933,40.0]
[1672534857938,75.07,10.005,9.9933,40.0]
[1672534858251,75.07,10.005,9.9935,40.0]
[1672534858779,75.07,10.005,9.9937,40.0]
[1672534859825,75.07,10.005,9.9939,40.0]
[1672534861617,75.07,10.005,9.994,23.9178]
[1672534862142,75.07,10.005,9.9941,23.0128]
[1672534863379,75.07,10.005,9.9942,23.0128]
[1672534864239,75.07,10.005,9.9943,40.0]
[1672534866977,75.07,10.005,9.9943,64.3044]
[1672534868860,40.0,10.004,9.9943,24.3044]
[1672534869073,75.07,10.005,9.9943,24.3044]
[1672534877373,40.0,10.004,9.9943,24.3044]
[1672534878446,232.9242,10.005,9.9943,24.3044]
[1672534878961,157.8542,10.005,9.9945,40.0]
[1672534879383,157.8542,10.005,9.9956,300.6]
[1672534879583,75.05,10.007,9.996,20.0]
[1672534879791,75.03,10.01,9.9968,40.0]
[1672534880001,75.02,10.011,9.997,43.7834]
[1672534880212,75.02,10.011,9.9981,40.0]
[1672534880419,75.02,10.011,9.9991,40.0]
[1672534880643,75.02,10.011,10.0,20.0]
[1672534880857,75.02,10.012,10.001,40.0]
[1672534881173,75.02,10.012,10.001,64.2003]
[1672534881905,40.0,10.011,10.001,24.2003]
[1672534882534,40.0,10.011,10.001,64.2003]
[1672534885056,75.03,10.01,10.001,103.97917275]
[1672534885271,40.0,10.011,10.001,88.17186489]
[1672534885587,40.0,10.011,10.001,128.17186489]
[1672534886948,40.0,10.011,10.001,88.17186489]
[1672534888629,40.0,10.009,10.001,24.2003]
[1672534891677,75.03,10.01,10.001,24.2003]
[1672534894938,40.0,10.009,10.001,24.2003]
[1672534895466,75.03,10.01,10.001,24.2003]
[1672534900210,75.03,10.01,10.001,64.2003]
[1672534900401,75.03,10.01,10.002,15.80730786]
[1672534900734,75.0,10.014,10.003,40.0]
[1672534900931,75.0,10.014,10.003,62.9983]
[1672534902754,40.0,10.013,10.003,62.9983]
[1672534903155,40.0,10.013,10.003,22.9983]
[1672534903363,75.02,10.012,10.003,22.9983]
[1672534903574,40.0,10.011,10.003,22.9983]
[1672534903786,75.02,10.012,10.003,22.9983]
[1672534907390,75.01,10.013,10.003,22.9983]
[1672534908376,24.4367,10.012,10.003,22.9983]
[1672534908544,75.02,10.011,10.003,22.9983]
[1672534908745,99.4567,10.012,10.003,22.9983]
[1672534916737,24.4367,10.012,10.003,22.9983]
[1672534918305,23.9367,10.012,10.004,40.0]
[1672534919550,40.0,10.011,10.003,22.9983]
[1672534919882,40.0,10.011,9.9918,40.0]
[1672534920093,274.23351401,10.01,9.994,23.524]
[1672534920407,274.23351401,10.01,9.9941,75.14]
[1672534920408,40.0,10.009,9.9941,75.14]
[1672534920624,40.0,10.007,9.9942,40.0]
[1672534920928,192.8808,10.006,9.9951,40.0]
[1672534921146,192.8808,10.006,9.9953,40.0]
[1672534921339,117.8208,10.005,9.9954,375.73]
[1672534921673,117.8208,10.005,9.9955,40.0]
[1672534921860,117.8208,10.005,9.9957,40.0]
[1672534922387,117.8208,10.005,9.9958,15.80730786]
[1672534922603,117.8208,10.005,9.9968,40.0]
[1672534923041,117.8208,10.005,9.998,40.0]
[1672534927142,117.8208,10.005,9.9979,300.6]
[1672534927548,117.8208,10.005,9.998,40.0]
[1672534927878,141.9998,10.005,9.998,40.0]
[1672534929240,141.9998,10.005,9.998,356.40730786]
[1672534931224,117.8208,10.005,9.998,356.40730786]
[1672534931434,117.8208,10.005,9.9992,40.0]
[1672534931649,117.8208,10.005,10.001,40.0]
[1672534932594,75.02,10.011,10.001,40.0]
[1672534933857,75.02,10.011,10.001,356.40730786]
[1672534934184,75.02,10.012,10.001,356.40730786]
[1672534936491,99.126,10.012,10.001,356.40730786]
[1672534938180,99.126,10.012,10.001,421.23049693]
[1672534938386,24.106,10.012,10.001,421.23049693]
[1672534946381,64.106,10.012,10.001,421.23049693]
[1672534946591,64.106,10.012,10.001,381.23049693]
[1672534947953,64.106,10.012,10.002,40.0]
[1672534948162,64.106,10.012,10.003,44.39]
[1672534948812,24.106,10.012,10.003,44.39]
[1672534949000,24.106,10.012,10.003,60.19730786]
[1672534952798,40.0,10.011,10.003,60.19730786]
[1672534953429,64.106,10.012,10.003,60.19730786]
[1672534956896,24.106,10.012,10.004,40.0]
[1672534957110,24.106,10.012,10.005,44.39]
[1672534957340,24.106,10.012,10.006,300.6]
[1672534957645,24.106,10.012,10.007,44.38]
[1672534958167,24.106,10.012,10.007,384.98]
[1672534958576,24.106,10.012,10.007,400.78730786]
[1672534959428,24.106,10.012,10.007,44.38]
[1672534964059,24.106,10.012,10.008,40.0]
[1672534965214,24.106,10.012,10.007,44.38]
[1672534986557,40.0,10.011,10.007,44.38]
[1672534988779,64.106,10.012,10.007,44.38]